[Event "Turkish Youth Championships 2023"]
[Site "Samsun"]
[Date "2023.05.20"]
[Round "2.14"]
[White "Kalyoncu, Beren"]
[Black "Dogan, Umut Anil"]
[Result "0-1"]
[WhiteElo "1385"]
[BlackElo "1857"]
[Annotator "COMBH"]
[PlyCount "64"]
[EventDate "2023.05.19"]
[EventType "swiss"]
[EventCountry "TUR"]
[TimeControl "5400+30"]
[WhiteClock "0:00:02"]

1. Nf3 {[%emt 0:01:00]} c5 {[%emt 0:01:00]} 2. g3 {[%emt 0:00:30]} Nc6 {[%emt 0:00:30]} 3. Bg2 {[%emt 0:00:30]} g6 {[%emt 0:00:30]} 4. c4 {[%emt 0:00:30]} Bg7 {[%emt 0:00:30]} 5. Nc3 {[%emt 0:00:30]} d6 {[%emt 0:00:30]} 6. O-O {[%emt 0:02:30]} e6 {[%emt 0:01:30]} 7. e3 {[%emt 0:05:30]} Nge7 {[%emt 0:00:30]} 8. Re1 {[%emt 0:10:30]} O-O {[%emt 0:00:30]} 9. d3 {[%emt 0:08:30]} b6 {[%emt 0:02:30]} 10. Qd2 {[%emt 0:08:30]} Bb7 {[%emt 0:01:30]} 11. d4 {[%emt 0:11:30]} cxd4 {[%emt 0:03:30]} 12. Nxd4 {[%emt 0:01:30]} Qd7 {[%emt 0:00:30]} 13. Ndb5 {[%emt 0:03:30]} Rfd8 {[%emt 0:00:30]} 14. Rd1 {[%emt 0:02:30]} Na5 {[%emt 0:09:30]} 15. Bxb7 {[%emt 0:14:30]} Nxb7 {[%emt 0:01:30]} 16. e4 {[%emt 0:04:30]} Nc6 {[%emt 0:01:30]} 17. b3 {[%emt 0:02:56]} a6 {[%emt 0:01:30]} 18. Na3 {[%emt 0:00:19]} Nc5 {[%emt 0:13:30]} 19. Bb2 {[%emt 0:01:25]} Nb4 {[%emt 0:04:30]} 20. Qe2 {[%emt 0:07:58]} Qb7 {[%emt 0:03:30]} 21. Rd2 {[%emt 0:01:42]} Rd7 {[%emt 0:03:30]} 22. Rad1 {[%emt 0:03:43]} Rad8 {[%emt 0:00:30]} 23. Qe3 {[%emt 0:00:34]} Nc6 {[%emt 0:06:30]} 24. Nc2 {[%emt 0:01:55]} b5 {[%emt 0:00:30]} 25. cxb5 {[%emt 0:02:29]} axb5 {[%emt 0:00:30]} 26. Nd4 {[%emt 0:02:00]} Nxd4 {[%emt 0:03:30]} 27. Rxd4 {[%emt 0:00:01]} b4 {[%emt 0:00:00]} 28. Ne2 {[%emt 0:01:00]} Bxd4 {[%emt 0:00:00]} 29. Qxd4 {[%emt 0:00:11]} e5 {[%emt 0:00:00]} 30. Qe3 {[%emt 0:02:15]} Qxe4 {[%emt 0:00:00]} 31. Qd2 {[%emt 0:00:26]} Ne6 {[%emt 0:02:30]} 32. Rc1 {[%emt 0:00:34]} Rc7 {[%emt 0:00:30]} 0-1

[Event "Turkish Youth Championships 2023"]
[Site "Samsun"]
[Date "2023.05.20"]
[Round "2.15"]
[White "Aydogdu, Cagatay"]
[Black "Bozdemir, Demir Can"]
[Result "1-0"]
[WhiteElo "1856"]
[BlackElo "1283"]
[Annotator "COMBH"]
[PlyCount "89"]
[EventDate "2023.05.19"]
[EventType "swiss"]
[EventCountry "TUR"]
[TimeControl "5400+30"]
[BlackClock "0:01:46"]

1. e4 {[%emt 0:08:00]} c5 {[%emt 0:01:00]} 2. Nf3 {[%emt 0:00:30]} e6 {[%emt 0:00:00]} 3. c4 {[%emt 0:00:30]} Nc6 {[%emt 0:00:00]} 4. Nc3 {[%emt 0:00:00]} a6 {[%emt 0:00:30]} 5. d4 {[%emt 0:03:00]} cxd4 {[%emt 0:00:30]} 6. Nxd4 {[%emt 0:00:30]} Qc7 {[%emt 0:00:30]} 7. Be3 {[%emt 0:00:00]} Nf6 {[%emt 0:00:30]} 8. f3 {[%emt 0:00:00]} Be7 {[%emt 0:00:30]} 9. Qd2 {[%emt 0:00:30]} O-O {[%emt 0:00:30]} 10. Be2 {[%emt 0:00:30]} Ne5 {[%emt 0:01:30]} 11. Rc1 {[%emt 0:01:30]} d6 {[%emt 0:00:30]} 12. O-O {[%emt 0:00:30]} b6 {[%emt 0:00:30]} 13. Rfd1 {[%emt 0:04:30]} Bb7 {[%emt 0:00:30]} 14. Na4 {[%emt 0:02:30]} Ned7 {[%emt 0:02:30]} 15. b4 {[%emt 0:00:30]} Qd8 {[%emt 0:03:30]} 16. a3 {[%emt 0:10:30]} Rc8 {[%emt 0:00:30]} 17. Bf1 {[%emt 0:02:30]} d5 {[%emt 0:07:30]} 18. exd5 {[%emt 0:03:30]} exd5 {[%emt 0:00:30]} 19. Nf5 {[%emt 0:03:30]} Re8 {[%emt 0:03:30]} 20. Qf2 {[%emt 0:02:30]} g6 {[%emt 0:03:30]} 21. Nxe7+ {[%emt 0:04:30]} Qxe7 {[%emt 0:01:30]} 22. Re1 {[%emt 0:04:30]} Qd6 {[%emt 0:02:30]} 23. Nxb6 {[%emt 0:05:30]} Nxb6 {[%emt 0:00:30]} 24. c5 {[%emt 0:02:30]} Qe6 {[%emt 0:01:30]} 25. Bd4 {[%emt 0:00:30]} Qc6 {[%emt 0:01:30]} 26. cxb6 {[%emt 0:11:30]} Qxc1 {[%emt 0:03:30]} 27. Rxc1 {[%emt 0:00:30]} Rxc1 {[%emt 0:00:30]} 28. Be3 {[%emt 0:01:30]} Rc3 {[%emt 0:02:30]} 29. Bd2 {[%emt 0:04:30]} Rc2 {[%emt 0:05:30]} 30. Qd4 {[%emt 0:00:30]} Re6 {[%emt 0:03:30]} 31. g3 {[%emt 0:03:30]} Nd7 {[%emt 0:04:30]} 32. f4 {[%emt 0:02:09]} Nxb6 {[%emt 0:10:30]} 33. f5 {[%emt 0:03:49]} gxf5 {[%emt 0:06:30]} 34. Bc3 {[%emt 0:00:48]} f6 {[%emt 0:00:30]} 35. Bd3 {[%emt 0:02:37]} Rc1+ {[%emt 0:00:30]} 36. Kf2 {[%emt 0:00:14]} Rc6 {[%emt 0:20:42]} 37. Bd2 {[%emt 0:01:44]} Rh1 {[%emt 0:01:59]} 38. Bxf5 {[%emt 0:01:33]} Rxh2+ {[%emt 0:10:00]} 39. Kg1 {[%emt 0:00:20]} Rxd2 {[%emt 0:00:39]} 40. Qxd2 {[%emt 0:00:20]} Rc7 {[%emt 0:00:48]} 41. Qf4 {[%emt 0:00:14]} Rc6 {[%emt 0:01:16]} 42. Qg4+ {[%emt 0:01:13]} Kh8 {[%emt 0:00:42]} 43. Be6 {[%emt 0:00:00]} Rc1+ {[%emt 0:00:00]} 44. Kf2 {[%emt 0:00:52]} Rc2+ {[%emt 0:00:00]} 45. Ke1 {[%emt 0:00:00]} 1-0

[Event "Turkish Youth Championships 2023"]
[Site "Samsun"]
[Date "2023.05.20"]
[Round "2.16"]
[White "Ermis, Baris"]
[Black "Hasirci, Ozgur Deniz"]
[Result "0-1"]
[WhiteElo "1304"]
[BlackElo "1763"]
[Annotator "COMBH"]
[PlyCount "112"]
[EventDate "2023.05.19"]
[EventType "swiss"]
[EventCountry "TUR"]
[TimeControl "5400+30"]
[WhiteClock "0:06:12"]

1. e4 {[%emt 0:01:00]} c5 {[%emt 0:01:00]} 2. Nf3 {[%emt 0:00:30]} d6 {[%emt 0:00:30]} 3. d4 {[%emt 0:00:30]} cxd4 {[%emt 0:00:30]} 4. Nxd4 {[%emt 0:00:30]} Nf6 {[%emt 0:00:30]} 5. Nc3 {[%emt 0:00:30]} a6 {[%emt 0:00:30]} 6. Bd3 {[%emt 0:00:30]} e5 {[%emt 0:00:30]} 7. Nb3 {[%emt 0:00:30]} Be6 {[%emt 0:00:30]} 8. O-O {[%emt 0:00:30]} Nbd7 {[%emt 0:00:00]} 9. h3 {[%emt 0:03:30]} Be7 {[%emt 0:02:00]} 10. Qe2 {[%emt 0:03:30]} Rc8 {[%emt 0:02:30]} 11. f4 {[%emt 0:00:30]} exf4 {[%emt 0:00:30]} 12. Bxf4 {[%emt 0:00:30]} Ne5 {[%emt 0:00:30]} 13. Rad1 {[%emt 0:00:00]} Nc4 {[%emt 0:10:30]} 14. Rb1 {[%emt 0:31:00]} Qb6+ {[%emt 0:18:30]} 15. Kh1 {[%emt 0:02:30]} Ne5 {[%emt 0:25:30]} 16. Be3 {[%emt 0:06:30]} Qc7 {[%emt 0:00:30]} 17. Nd4 {[%emt 0:01:30]} O-O {[%emt 0:01:30]} 18. Nf5 {[%emt 0:01:30]} Bd8 {[%emt 0:03:30]} 19. Bg5 {[%emt 0:18:30]} Ne8 {[%emt 0:07:30]} 20. Qh5 {[%emt 0:11:38]} f6 {[%emt 0:13:44]} 21. Be3 {[%emt 0:01:06]} g6 {[%emt 0:00:12]} 22. Nh6+ {[%emt 0:01:00]} Kg7 {[%emt 0:00:51]} 23. Qd1 {[%emt 0:01:46]} Qd7 {[%emt 0:00:14]} 24. Re1 {[%emt 0:04:39]} Ba5 {[%emt 0:04:40]} 25. b4 {[%emt 0:02:13]} Bxb4 {[%emt 0:01:18]} 26. Rxb4 {[%emt 0:00:10]} Rxc3 {[%emt 0:00:00]} 27. Qd2 {[%emt 0:01:52]} Ra3 {[%emt 0:00:06]} 28. Nf5+ {[%emt 0:00:16]} gxf5 {[%emt 0:02:53]} 29. exf5 {[%emt 0:01:00]} Bd5 {[%emt 0:01:39]} 30. Bh6+ {[%emt 0:00:31]} Kf7 {[%emt 0:00:14]} 31. Bxf8 {[%emt 0:00:39]} Kxf8 {[%emt 0:00:30]} 32. Qh6+ {[%emt 0:00:30]} Qg7 {[%emt 0:00:00]} 33. Qd2 {[%emt 0:01:13]} b5 {[%emt 0:01:47]} 34. Be4 {[%emt 0:01:36]} Bxe4 {[%emt 0:00:21]} 35. Rexe4 {[%emt 0:00:19]} Rxa2 {[%emt 0:00:27]} 36. Rxe5 {[%emt 0:01:18]} fxe5 {[%emt 0:01:08]} 37. Rg4 {[%emt 0:00:30]} Qf7 {[%emt 0:00:07]} 38. Qh6+ {[%emt 0:00:41]} Ke7 {[%emt 0:00:05]} 39. Qh4+ {[%emt 0:00:06]} Kd7 {[%emt 0:00:08]} 40. Qf2 {[%emt 0:00:18]} Kc6 {[%emt 0:00:44]} 41. Rg3 {[%emt 0:00:17]} Nf6 {[%emt 0:00:32]} 42. Rc3+ {[%emt 0:00:39]} Kb7 {[%emt 0:00:04]} 43. Qd2 {[%emt 0:00:42]} Ne4 {[%emt 0:00:37]} 44. Qe3 {[%emt 0:00:55]} Nxc3 {[%emt 0:00:34]} 45. Qxc3 {[%emt 0:00:10]} Qxf5 {[%emt 0:00:00]} 46. Kh2 {[%emt 0:01:09]} Rxc2 {[%emt 0:00:00]} 47. Qa3 {[%emt 0:00:30]} Qf4+ {[%emt 0:00:21]} 48. Kh1 {[%emt 0:00:00]} Rc1+ {[%emt 0:00:05]} 49. Qxc1 {[%emt 0:00:14]} Qxc1+ {[%emt 0:00:30]} 50. Kh2 {[%emt 0:00:00]} b4 {[%emt 0:00:00]} 51. g4 {[%emt 0:00:12]} Qf4+ {[%emt 0:00:05]} 52. Kg2 {[%emt 0:00:30]} e4 {[%emt 0:00:00]} 53. Kg1 {[%emt 0:00:00]} e3 {[%emt 0:00:00]} 54. Kh1 {[%emt 0:00:08]} e2 {[%emt 0:00:00]} 55. Kg2 {[%emt 0:00:00]} e1=Q {[%emt 0:00:00]} 56. h4 {[%emt 0:00:17]} Qfg3# {[%emt 0:00:00]} 0-1

[Event "Turkish Youth Championships 2023"]
[Site "Samsun"]
[Date "2023.05.20"]
[Round "2.17"]
[White "Ozgun, Yigit Deniz"]
[Black "Demirkan, Mustafa"]
[Result "1-0"]
[WhiteElo "1747"]
[BlackElo "1207"]
[Annotator "COMBH"]
[PlyCount "83"]
[EventDate "2023.05.19"]
[EventType "swiss"]
[EventCountry "TUR"]
[TimeControl "5400+30"]
[BlackClock "1:04:00"]

1. Nf3 {[%emt 0:01:00]} d5 {[%emt 0:01:00]} 2. b3 {[%emt 0:00:30]} Nc6 {[%emt 0:00:30]} 3. Bb2 {[%emt 0:00:30]} Nf6 {[%emt 0:00:30]} 4. e3 {[%emt 0:00:30]} Bf5 {[%emt 0:00:30]} 5. Be2 {[%emt 0:00:30]} e6 {[%emt 0:00:30]} 6. O-O {[%emt 0:02:30]} Bd6 {[%emt 0:00:30]} 7. d4 {[%emt 0:00:30]} Nb8 {[%emt 0:00:30]} 8. c4 {[%emt 0:00:00]} b6 {[%emt 0:01:30]} 9. Nc3 {[%emt 0:01:00]} Be7 {[%emt 0:04:30]} 10. Nh4 {[%emt 0:01:30]} Bg6 {[%emt 0:00:30]} 11. Nxg6 {[%emt 0:00:30]} hxg6 {[%emt 0:00:30]} 12. Bf3 {[%emt 0:00:30]} c6 {[%emt 0:00:30]} 13. e4 {[%emt 0:00:30]} dxe4 {[%emt 0:00:30]} 14. Nxe4 {[%emt 0:00:30]} Nxe4 {[%emt 0:00:30]} 15. Bxe4 {[%emt 0:00:30]} Rh4 {[%emt 0:00:30]} 16. Qf3 {[%emt 0:00:30]} Qd6 {[%emt 0:02:30]} 17. g3 {[%emt 0:00:30]} Rh5 {[%emt 0:00:30]} 18. Rad1 {[%emt 0:00:30]} f5 {[%emt 0:00:30]} 19. Bc2 {[%emt 0:00:30]} Nd7 {[%emt 0:02:30]} 20. Bc1 {[%emt 0:01:30]} Qc7 {[%emt 0:00:30]} 21. Rfe1 {[%emt 0:00:30]} Kf7 {[%emt 0:01:30]} 22. Qe2 {[%emt 0:00:30]} Nf8 {[%emt 0:01:30]} 23. d5 {[%emt 0:08:30]} cxd5 {[%emt 0:04:30]} 24. cxd5 {[%emt 0:00:30]} Re8 {[%emt 0:03:30]} 25. dxe6+ {[%emt 0:00:30]} Kg8 {[%emt 0:00:30]} 26. Bf4 {[%emt 0:00:30]} Qb7 {[%emt 0:01:30]} 27. Qb5 {[%emt 0:01:30]} Qc8 {[%emt 0:00:30]} 28. Bd3 {[%emt 0:00:00]} Bc5 {[%emt 0:03:30]} 29. Bc4 {[%emt 0:00:00]} Kh8 {[%emt 0:00:30]} 30. e7 {[%emt 0:02:30]} Rxe7 {[%emt 0:01:30]} 31. Rxe7 {[%emt 0:00:30]} Bxe7 {[%emt 0:00:00]} 32. Qd5 {[%emt 0:00:00]} Nh7 {[%emt 0:00:00]} 33. Qf7 {[%emt 0:00:00]} Qf8 {[%emt 0:01:30]} 34. Qxg6 {[%emt 0:00:30]} Nf6 {[%emt 0:00:30]} 35. Be5 {[%emt 0:01:30]} Rh6 {[%emt 0:00:30]} 36. Qxf5 {[%emt 0:00:00]} Rh5 {[%emt 0:00:30]} 37. Qf4 {[%emt 0:01:00]} Qc8 {[%emt 0:00:30]} 38. Bxf6 {[%emt 0:02:30]} Bxf6 {[%emt 0:00:30]} 39. Re1 {[%emt 0:00:00]} Qf5 {[%emt 0:03:30]} 40. Re8+ {[%emt 0:01:00]} Kh7 {[%emt 0:00:30]} 41. Qxf5+ {[%emt 0:00:30]} Rxf5 {[%emt 0:00:00]} 42. Bd3 {[%emt 0:00:00]} 1-0

[Event "Turkish Youth Championships 2023"]
[Site "Samsun"]
[Date "2023.05.20"]
[Round "2.18"]
[White "Apaydin, Mehmet Kagan"]
[Black "Coskun, Emre"]
[Result "0-1"]
[WhiteElo "1314"]
[BlackElo "1750"]
[Annotator "COMBH"]
[PlyCount "78"]
[EventDate "2023.05.19"]
[EventType "swiss"]
[EventCountry "TUR"]
[TimeControl "5400+30"]

1. d4 {[%emt 0:01:00]} Nf6 {[%emt 0:01:00]} 2. Nf3 {[%emt 0:00:30]} d5 {[%emt 0:00:30]} 3. g3 {[%emt 0:00:30]} c5 {[%emt 0:00:30]} 4. Bg2 {[%emt 0:00:30]} Nc6 {[%emt 0:02:30]} 5. O-O {[%emt 0:00:30]} Bf5 {[%emt 0:01:30]} 6. c4 {[%emt 0:00:00]} e6 {[%emt 0:03:30]} 7. Nc3 {[%emt 0:06:00]} Be7 {[%emt 0:13:30]} 8. cxd5 {[%emt 0:26:30]} exd5 {[%emt 0:00:30]} 9. Bg5 {[%emt 0:01:30]} O-O {[%emt 0:14:30]} 10. dxc5 {[%emt 0:06:30]} d4 {[%emt 0:02:30]} 11. Nb5 {[%emt 0:00:30]} Bxc5 {[%emt 0:01:30]} 12. Qc1 {[%emt 0:02:30]} Qb6 {[%emt 0:10:30]} 13. Qf4 {[%emt 0:01:30]} Bg6 {[%emt 0:03:30]} 14. Na3 {[%emt 0:07:30]} Qxb2 {[%emt 0:04:30]} 15. Nc4 {[%emt 0:02:30]} Qxe2 {[%emt 0:01:30]} 16. Nfe5 {[%emt 0:03:30]} Nh5 {[%emt 0:20:44]} 17. Qf3 {[%emt 0:17:30]} Qxf3 {[%emt 0:00:30]} 18. Bxf3 {[%emt 0:00:30]} f6 {[%emt 0:01:24]} 19. Nxg6 {[%emt 0:02:23]} hxg6 {[%emt 0:00:01]} 20. Bd2 {[%emt 0:00:19]} f5 {[%emt 0:01:11]} 21. Rab1 {[%emt 0:00:29]} Nf6 {[%emt 0:02:49]} 22. Rxb7 {[%emt 0:01:18]} Ne4 {[%emt 0:00:04]} 23. Bf4 {[%emt 0:01:29]} Rfe8 {[%emt 0:01:54]} 24. Rc1 {[%emt 0:02:17]} Rac8 {[%emt 0:00:39]} 25. Nd2 {[%emt 0:01:39]} Nc3 {[%emt 0:01:42]} 26. Nb1 {[%emt 0:02:19]} Na5 {[%emt 0:01:22]} 27. Nxc3 {[%emt 0:04:41]} Nxb7 {[%emt 0:03:14]} 28. Na4 {[%emt 0:02:18]} Nd6 {[%emt 0:01:24]} 29. Rxc5 {[%emt 0:01:58]} Ne4 {[%emt 0:00:37]} 30. Bxe4 {[%emt 0:02:11]} fxe4 {[%emt 0:00:25]} 31. Kf1 {[%emt 0:00:23]} g5 {[%emt 0:02:22]} 32. Bxg5 {[%emt 0:01:24]} Rxc5 {[%emt 0:00:14]} 33. Nxc5 {[%emt 0:00:49]} Re5 {[%emt 0:00:05]} 34. Nxe4 {[%emt 0:01:54]} Rxe4 {[%emt 0:00:04]} 35. f3 {[%emt 0:00:04]} Re5 {[%emt 0:00:07]} 36. Bc1 {[%emt 0:00:46]} d3 {[%emt 0:00:05]} 37. Bb2 {[%emt 0:00:18]} Re2 {[%emt 0:00:37]} 38. Bd4 {[%emt 0:00:30]} Rxa2 {[%emt 0:00:00]} 39. h4 {[%emt 0:00:28]} a5 {[%emt 0:00:02]} 0-1

[Event "Turkish Youth Championships 2023"]
[Site "Samsun"]
[Date "2023.05.20"]
[Round "2.19"]
[White "Atis, Hasan"]
[Black "Akyuz, Pars"]
[Result "1-0"]
[WhiteElo "1890"]
[BlackElo "1219"]
[Annotator "COMBH"]
[PlyCount "127"]
[EventDate "2023.05.19"]
[EventType "swiss"]
[EventCountry "TUR"]
[TimeControl "5400+30"]
[BlackClock "0:17:03"]

1. e4 {[%emt 0:01:00]} c6 {[%emt 0:01:00]} 2. d4 {[%emt 0:00:30]} d5 {[%emt 0:00:30]} 3. Nc3 {[%emt 0:00:30]} dxe4 {[%emt 0:00:30]} 4. Nxe4 {[%emt 0:00:30]} Bf5 {[%emt 0:00:30]} 5. Ng3 {[%emt 0:00:30]} Bg6 {[%emt 0:00:30]} 6. Nf3 {[%emt 0:00:30]} Nf6 {[%emt 0:00:30]} 7. Bc4 {[%emt 0:00:30]} e6 {[%emt 0:00:00]} 8. c3 {[%emt 0:09:30]} Bd6 {[%emt 0:00:00]} 9. Qe2 {[%emt 0:00:30]} O-O {[%emt 0:00:30]} 10. Ne5 {[%emt 0:00:30]} Nbd7 {[%emt 0:01:30]} 11. Bb3 {[%emt 0:06:30]} Qc7 {[%emt 0:01:30]} 12. Nc4 {[%emt 0:06:30]} Rfe8 {[%emt 0:02:30]} 13. Nxd6 {[%emt 0:06:30]} Qxd6 {[%emt 0:00:00]} 14. O-O {[%emt 0:00:00]} c5 {[%emt 0:01:00]} 15. Rd1 {[%emt 0:10:00]} Qc7 {[%emt 0:04:30]} 16. Be3 {[%emt 0:03:30]} cxd4 {[%emt 0:04:30]} 17. Rxd4 {[%emt 0:00:30]} Nb6 {[%emt 0:07:30]} 18. Rad1 {[%emt 0:04:30]} Nbd5 {[%emt 0:07:30]} 19. Bc1 {[%emt 0:09:30]} Nb6 {[%emt 0:00:30]} 20. Qf3 {[%emt 0:03:30]} a5 {[%emt 0:05:30]} 21. a3 {[%emt 0:05:30]} e5 {[%emt 0:01:30]} 22. Rd6 {[%emt 0:01:30]} Nc8 {[%emt 0:03:30]} 23. R6d2 {[%emt 0:05:30]} Ne7 {[%emt 0:02:30]} 24. Ba4 {[%emt 0:03:30]} e4 {[%emt 0:04:30]} 25. Qe2 {[%emt 0:01:30]} Nc6 {[%emt 0:00:30]} 26. Rd6 {[%emt 0:00:37]} Red8 {[%emt 0:04:30]} 27. Bf4 {[%emt 0:00:23]} Rxd6 {[%emt 0:06:30]} 28. Rxd6 {[%emt 0:01:47]} Qb6 {[%emt 0:04:30]} 29. Qb5 {[%emt 0:10:08]} Qxb5 {[%emt 0:02:30]} 30. Bxb5 {[%emt 0:00:02]} Ne8 {[%emt 0:03:30]} 31. Rd5 {[%emt 0:01:27]} Nf6 {[%emt 0:01:30]} 32. Bxc6 {[%emt 0:00:30]} Nxd5 {[%emt 0:01:30]} 33. Bxd5 {[%emt 0:00:06]} Rd8 {[%emt 0:00:30]} 34. c4 {[%emt 0:00:01]} Rd7 {[%emt 0:01:30]} 35. Kf1 {[%emt 0:01:19]} h5 {[%emt 0:03:30]} 36. h4 {[%emt 0:00:18]} b5 {[%emt 0:00:30]} 37. Ke2 {[%emt 0:04:42]} bxc4 {[%emt 0:01:30]} 38. Bxc4 {[%emt 0:00:05]} Kf8 {[%emt 0:01:30]} 39. Bd2 {[%emt 0:00:13]} Rb7 {[%emt 0:00:30]} 40. b4 {[%emt 0:00:19]} axb4 {[%emt 0:01:30]} 41. Bxb4+ {[%emt 0:00:05]} Ke8 {[%emt 0:00:30]} 42. Bd5 {[%emt 0:00:02]} Rb6 {[%emt 0:01:30]} 43. Nxe4 {[%emt 0:00:07]} Bxe4 {[%emt 0:01:30]} 44. Bxe4 {[%emt 0:00:01]} Re6 {[%emt 0:00:30]} 45. Kd3 {[%emt 0:00:02]} Rf6 {[%emt 0:01:01]} 46. Bf3 {[%emt 0:00:21]} Rf4 {[%emt 0:00:40]} 47. Bxh5 {[%emt 0:00:16]} Rxh4 {[%emt 0:00:29]} 48. Bf3 {[%emt 0:00:03]} Rh6 {[%emt 0:02:09]} 49. a4 {[%emt 0:00:06]} Ra6 {[%emt 0:01:22]} 50. a5 {[%emt 0:00:30]} Kd7 {[%emt 0:00:12]} 51. Kc4 {[%emt 0:00:00]} Kc7 {[%emt 0:00:42]} 52. Kb5 {[%emt 0:00:00]} Ra7 {[%emt 0:00:38]} 53. Bc5 {[%emt 0:00:00]} Rb7+ {[%emt 0:00:37]} 54. Bxb7 {[%emt 0:00:00]} Kxb7 {[%emt 0:00:15]} 55. a6+ {[%emt 0:00:00]} Ka8 {[%emt 0:00:38]} 56. f4 {[%emt 0:00:13]} f5 {[%emt 0:00:28]} 57. Kb6 {[%emt 0:00:03]} Kb8 {[%emt 0:00:17]} 58. Bd6+ {[%emt 0:00:30]} Ka8 {[%emt 0:00:00]} 59. Be5 {[%emt 0:00:00]} g6 {[%emt 0:00:32]} 60. Bc7 {[%emt 0:00:18]} g5 {[%emt 0:00:16]} 61. fxg5 {[%emt 0:00:00]} f4 {[%emt 0:00:45]} 62. g6 {[%emt 0:00:01]} f3 {[%emt 0:01:17]} 63. g7 {[%emt 0:00:05]} fxg2 {[%emt 0:00:15]} 64. g8=Q# {[%emt 0:00:09]} 1-0

[Event "Turkish Youth Championships 2023"]
[Site "Samsun"]
[Date "2023.05.20"]
[Round "2.20"]
[White "Gungor, Cihan Akif"]
[Black "Simsek, Ayaz"]
[Result "1-0"]
[ECO "C02"]
[WhiteElo "1771"]
[BlackElo "1474"]
[Annotator "NA RC COMBH"]
[PlyCount "85"]
[EventDate "2023.05.19"]
[EventType "swiss"]
[EventCountry "TUR"]
[SourceTitle "playchess.com"]
[Source "ChessBase"]
[SourceQuality "1"]
[TimeControl "5400+30"]

1. e4 e6 2. d4 d5 3. e5 c5 4. c3 Nc6 5. Nf3 Qb6 6. Na3 f6 7. exf6 Nxf6 8. Nc2 Bd6 9. Bd3 O-O 10. O-O e5 11. dxe5 Nxe5 12. Nxe5 Bxe5 13. h3 Bd7 14. Ne3 {[%emt 0:22:30]} Rae8 {[%emt 0:21:30]} 15. Nxd5 {[%emt 0:01:30]} Nxd5 {[%emt 0:01:30]} 16. Bc4 {[%emt 0:00:30]} Kh8 {[%emt 0:01:30]} 17. Bxd5 {[%emt 0:02:30]} Qg6 {[%emt 0:01:30]} 18. f4 {[%emt 0:03:30]} Bc7 {[%emt 0:01:30]} 19. Qf3 {[%emt 0:01:30]} b5 {[%emt 0:02:30]} 20. Be3 {[%emt 0:01:30]} Bb6 {[%emt 0:00:30]} 21. Rae1 {[%emt 0:01:30]} Qc2 {[%emt 0:04:30]} 22. Rf2 {[%emt 0:05:30]} Qd3 {[%emt 0:03:30]} 23. Rd2 {[%emt 0:01:30]} Rxe3 {[%emt 0:02:30]} 24. Rxd3 {[%emt 0:00:30]} Rxd3 {[%emt 0:01:30]} 25. Qxd3 {[%emt 0:00:30]} c4+ {[%emt 0:00:30]} 26. Qe3 {[%emt 0:00:30]} Re8 {[%emt 0:00:00]} 27. Qxb6 {[%emt 0:02:30]} Rxe1+ {[%emt 0:01:00]} 28. Kf2 {[%emt 0:00:30]} axb6 {[%emt 0:00:30]} 29. Kxe1 {[%emt 0:00:00]} g6 {[%emt 0:00:00]} 30. Kf2 {[%emt 0:01:00]} Kg7 {[%emt 0:00:00]} 31. Ke3 {[%emt 0:00:00]} Kf6 {[%emt 0:00:00]} 32. Ke4 {[%emt 0:02:00]} h6 {[%emt 0:01:00]} 33. h4 {[%emt 0:01:30]} Be8 {[%emt 0:07:30]} 34. g4 {[%emt 0:01:30]} Bd7 {[%emt 0:03:30]} 35. g5+ {[%emt 0:00:30]} hxg5 {[%emt 0:00:30]} 36. hxg5+ {[%emt 0:00:30]} Ke7 {[%emt 0:00:30]} 37. Ke5 {[%emt 0:00:00]} Be8 {[%emt 0:00:00]} 38. Be4 {[%emt 0:00:00]} Bf7 {[%emt 0:00:00]} 39. Bc6 {[%emt 0:00:00]} b4 {[%emt 0:01:30]} 40. cxb4 {[%emt 0:00:00]} c3 {[%emt 0:00:30]} 41. bxc3 {[%emt 0:00:30]} Bxa2 {[%emt 0:00:00]} 42. Bd5 {[%emt 0:00:00]} Bb1 {[%emt 0:00:00]} 43. Be4 {[%emt 0:00:00]} 1-0

[Event "Turkish Youth Championships 2023"]
[Site "Samsun"]
[Date "2023.05.20"]
[Round "2.20"]
[White "Cirkin, Osman Turan"]
[Black "Eroz, Enis"]
[Result "0-1"]
[WhiteElo "1200"]
[BlackElo "1830"]
[Annotator "COMBH"]
[PlyCount "106"]
[EventDate "2023.05.19"]
[EventType "swiss"]
[EventCountry "TUR"]
[TimeControl "5400+30"]
[WhiteClock "0:22:00"]

1. d4 {[%emt 0:01:00]} Nf6 {[%emt 0:01:00]} 2. Nf3 {[%emt 0:00:30]} g6 {[%emt 0:00:30]} 3. Bf4 {[%emt 0:00:30]} Bg7 {[%emt 0:00:30]} 4. e3 {[%emt 0:00:30]} d6 {[%emt 0:00:30]} 5. Bc4 {[%emt 0:00:30]} O-O {[%emt 0:00:30]} 6. h3 {[%emt 0:00:30]} a6 {[%emt 0:00:30]} 7. a4 {[%emt 0:03:30]} Nbd7 {[%emt 0:01:30]} 8. O-O {[%emt 0:01:30]} Qe8 {[%emt 0:02:30]} 9. Bh2 {[%emt 0:03:30]} e5 {[%emt 0:01:30]} 10. dxe5 {[%emt 0:05:30]} dxe5 {[%emt 0:01:30]} 11. Nbd2 {[%emt 0:05:30]} e4 {[%emt 0:01:30]} 12. Nd4 {[%emt 0:00:30]} Ne5 {[%emt 0:01:30]} 13. Bb3 {[%emt 0:05:30]} Bd7 {[%emt 0:03:30]} 14. f4 {[%emt 0:03:30]} exf3 {[%emt 0:01:30]} 15. N2xf3 {[%emt 0:00:00]} Nxf3+ {[%emt 0:00:30]} 16. Qxf3 {[%emt 0:00:00]} c5 {[%emt 0:01:30]} 17. Bd6 {[%emt 0:03:30]} cxd4 {[%emt 0:00:00]} 18. exd4 {[%emt 0:00:00]} Qe4 {[%emt 0:03:00]} 19. Bxf8 {[%emt 0:12:00]} Qxd4+ {[%emt 0:01:30]} 20. Qf2 {[%emt 0:00:30]} Qxf2+ {[%emt 0:01:30]} 21. Rxf2 {[%emt 0:00:30]} Rxf8 {[%emt 0:05:30]} 22. Raf1 {[%emt 0:00:30]} Bf5 {[%emt 0:00:30]} 23. g4 {[%emt 0:00:30]} Ne4 {[%emt 0:00:00]} 24. Rh2 {[%emt 0:06:30]} Bd4+ {[%emt 0:02:00]} 25. Kg2 {[%emt 0:01:30]} Be6 {[%emt 0:08:30]} 26. Bxe6 {[%emt 0:06:30]} fxe6 {[%emt 0:00:30]} 27. Rxf8+ {[%emt 0:00:30]} Kxf8 {[%emt 0:00:30]} 28. Kf3 {[%emt 0:00:30]} Ng5+ {[%emt 0:00:30]} 29. Kf4 {[%emt 0:00:30]} Be5+ {[%emt 0:00:30]} 30. Kxe5 {[%emt 0:00:30]} Nf3+ {[%emt 0:00:30]} 31. Kxe6 {[%emt 0:00:30]} Nxh2 {[%emt 0:00:30]} 32. b4 {[%emt 0:00:30]} Ke8 {[%emt 0:00:30]} 33. c4 {[%emt 0:01:30]} Nf3 {[%emt 0:00:30]} 34. Kd6 {[%emt 0:02:30]} Kd8 {[%emt 0:00:30]} 35. c5 {[%emt 0:00:30]} h5 {[%emt 0:01:30]} 36. c6 {[%emt 0:04:30]} Kc8 {[%emt 0:00:00]} 37. b5 {[%emt 0:02:30]} a5 {[%emt 0:01:00]} 38. b6 {[%emt 0:07:30]} Ng5 {[%emt 0:00:30]} 39. gxh5 {[%emt 0:03:30]} gxh5 {[%emt 0:00:00]} 40. cxb7+ {[%emt 0:00:30]} Kxb7 {[%emt 0:00:00]} 41. Kc5 {[%emt 0:00:00]} Nxh3 {[%emt 0:00:30]} 42. Kb5 {[%emt 0:00:00]} Ng5 {[%emt 0:01:30]} 43. Kxa5 {[%emt 0:00:00]} h4 {[%emt 0:00:30]} 44. Kb5 {[%emt 0:00:00]} h3 {[%emt 0:00:30]} 45. a5 {[%emt 0:00:30]} h2 {[%emt 0:00:00]} 46. a6+ {[%emt 0:00:30]} Kb8 {[%emt 0:00:00]} 47. b7 {[%emt 0:00:30]} h1=Q {[%emt 0:00:30]} 48. Kb6 {[%emt 0:00:00]} Qg1+ {[%emt 0:00:00]} 49. Kc6 {[%emt 0:00:00]} Qd4 {[%emt 0:00:00]} 50. Kb5 {[%emt 0:01:30]} Ne4 {[%emt 0:00:30]} 51. Kc6 {[%emt 0:01:30]} Qd6+ {[%emt 0:00:30]} 52. Kb5 {[%emt 0:00:30]} Qc5+ {[%emt 0:00:30]} 53. Ka4 {[%emt 0:00:00]} Qb6 {[%emt 0:00:30]} 0-1